fUST/lending_fUST_20250601
["ID","MTS","AMOUNT","RATE_DAILY","PERIOD"]
[363390099,1748716256101,-3000.0,0.0002119,2]
[363390100,1748716256111,-708.0,0.00021192,2]
[363390101,1748716256120,-2227.0,0.00021192,2]
[363390102,1748716256129,-405.0,0.00021192,2]
[363390103,1748716256138,-405.0,0.00021192,2]
[363390104,1748716256147,-962.0,0.00021192,2]
[363390105,1748716256157,-676.41775351,0.00021196,2]
[363390106,1748716256166,-215.0738,0.00021199,2]
[363390107,1748716256176,-3000.0,0.000212,2]
[363390108,1748716256185,-3000.0,0.0002121,2]
[363390109,1748716256194,-3000.0,0.0002122,2]
[363390110,1748716256204,-151.0,0.0002122,2]
[363390111,1748716256213,-151.0,0.0002122,2]
[363390112,1748716256222,-3000.0,0.0002123,2]
[363390113,1748716256232,-3000.0,0.0002124,2]
[363390114,1748716256241,-3000.0,0.0002125,2]
[363390115,1748716256250,-3000.0,0.0002126,2]
[363390116,1748716256260,-3000.0,0.0002127,2]
[363390117,1748716256269,-152.249243,0.0002127,2]
[363390118,1748716256278,-151.0,0.0002127,2]
[363390119,1748716256289,-151.0,0.0002127,2]
[363390120,1748716256299,-151.0,0.0002127,2]
[363390121,1748716256307,-3000.0,0.0002128,2]
[363390122,1748716256317,-151.0,0.0002128,2]
[363390123,1748716256326,-680.82994,0.0002128,2]
[363390124,1748716256335,-680.82994,0.0002128,2]
[363390125,1748716256346,-235.710601,0.0002128,2]
[363390126,1748716256355,-235.710601,0.0002128,2]
[363390127,1748716256365,-343.788651,0.0002128,2]
[363390128,1748716256374,-343.788651,0.0002128,2]
[363390129,1748716256383,-533.76350998,0.0002128,2]
[363390130,1748716256392,-3000.0,0.0002129,2]
[363390131,1748716256401,-3000.0,0.000213,2]
[363390132,1748716256411,-151.0,0.000213,2]
[363390133,1748716256420,-151.0,0.000213,2]
[363390134,1748716256430,-151.0,0.000213,2]
[363390135,1748716256439,-3000.0,0.0002131,2]
[363390136,1748716256448,-3000.0,0.0002132,2]
[363390137,1748716256458,-151.0,0.0002132,2]
[363390138,1748716256467,-381.203394,0.0002132,2]
[363390139,1748716256476,-381.203394,0.0002132,2]
[363390140,1748716256485,-3000.0,0.0002133,2]
[363390141,1748716256494,-3000.0,0.0002134,2]
[363390142,1748716256503,-3000.0,0.0002135,2]
[363390143,1748716256513,-500.0,0.00021355,2]
[363390144,1748716256522,-151.0,0.00021356,25]
[363390145,1748716256532,-3000.0,0.0002136,2]
[363390146,1748716256542,-438.87,0.00021369,2]
[363390147,1748716256551,-151.0,0.00021369,2]
[363390148,1748716256560,-151.0,0.00021369,2]
[363390149,1748716256570,-484.672087,0.00021369,2]
[363390150,1748716256583,-484.672087,0.00021369,2]
[363390151,1748716256594,-430.0,0.00021369,2]
[363390152,1748716256605,-359.75276455,0.00021369,2]
[363390153,1748716256614,-739.41,0.00021369,2]
[363390154,1748716256624,-954.07,0.00021369,2]
[363390155,1748716256634,-528.659518,0.00021369,2]
[363390156,1748716256644,-528.659518,0.00021369,2]
[363390157,1748716256654,-728.57,0.00021369,2]
[363390158,1748716256664,-1998.85,0.00021369,2]
[363390159,1748716256674,-506.33,0.00021369,2]
[363390160,1748716256683,-844.56,0.00021369,2]
[363390161,1748716256693,-1827.35,0.00021369,2]
[363390162,1748716256703,-449.29,0.00021369,2]
[363390163,1748716256712,-518.71,0.00021369,2]
[363390164,1748716256721,-2584.7,0.00021369,2]
[363390165,1748716256731,-564.45,0.00021369,2]
[363390166,1748716256741,-1144.67,0.00021369,2]
[363390167,1748716256750,-1561.77,0.00021369,2]
[363390168,1748716256760,-151.0,0.00021369,2]
[363390169,1748716256770,-1168.44,0.00021369,2]
[363390170,1748716256779,-1012.05,0.00021369,2]
[363390171,1748716256790,-1623.94,0.00021369,2]
[363390172,1748716256800,-574.66,0.00021369,2]
[363390173,1748716256810,-840.75,0.00021369,2]
[363390174,1748716256821,-430.0,0.00021369,2]
[363390175,1748716256830,-1055.3,0.00021369,2]
[363390176,1748716256840,-430.0,0.00021369,2]
[363390177,1748716256849,-249.56269999,0.00021369,2]
[363390178,1748716256858,-1013.71,0.00021369,2]
[363390179,1748716256868,-1544.75,0.00021369,2]
[363390180,1748716256878,-963.38,0.00021369,2]
[363390181,1748716256887,-3000.0,0.0002137,2]
[363390182,1748716256896,-151.0,0.0002137,2]
[363390183,1748716256906,-151.0,0.0002137,2]
[363390184,1748716256915,-3000.0,0.0002138,2]
[363390185,1748716256924,-151.0,0.0002138,2]
[363390186,1748716256933,-3000.0,0.0002139,2]
[363390187,1748716256942,-287.36,0.000214,2]
[363390188,1748716256952,-3000.0,0.000214,2]
[363390189,1748716256962,-151.0,0.000214,4]
[363390190,1748716256971,-3000.0,0.0002141,2]
[363390191,1748716256980,-151.0,0.0002141,2]
[363390192,1748716256990,-3000.0,0.0002142,2]
[363390193,1748716257000,-151.0,0.0002142,2]
[363390194,1748716257009,-151.0,0.0002142,2]
[363390195,1748716257025,-151.0,0.0002142,2]
[363390196,1748716257040,-151.0,0.0002142,2]
[363390197,1748716257050,-3000.0,0.0002143,2]
[363390198,1748716257060,-4183.81228,0.0002144,2]
[363390199,1748716257070,-823.0,0.00021452,2]
[363390200,1748716257080,-151.0,0.00021542,27]
[363390201,1748716257090,-159.957848,0.0002156,3]
[363390202,1748716257099,-17734.83509628,0.000216,2]
[363390203,1748716257298,-430.0,0.00016438,2]
[363390204,1748716257309,-430.0,0.00016438,2]
[363390205,1748716257320,-430.0,0.00016438,2]
[363390206,1748716257330,-427.27,0.00016438,2]
[363390207,1748716257340,-430.0,0.00016438,2]
[363390208,1748716257350,-430.0,0.00016438,2]
[363390209,1748716257360,-430.0,0.00016712,2]
[363390210,1748716257370,-1356.60724026,0.000216,2]
[363390211,1748716257383,-1000.8297316,0.000216,2]
[363390212,1748716257535,-1084.25060754,0.000216,2]
[363390213,1748716257547,-670.79689604,0.000216,2]
[363390214,1748716257559,-3339.44922212,0.000216,2]
[363390215,1748716257893,703.47407668,0.00015,2]
[363390217,1748716423467,797.45008,0.00013699,2]
[363390219,1748716541385,157.39788139,6.8e-07,2]
[363390220,1748716541497,157.39788139,6.8e-07,2]
[363390221,1748716541660,157.39788139,6.8e-07,2]
[363390222,1748716541771,157.39788139,6.8e-07,2]
[363390223,1748716541927,157.39788139,6.8e-07,2]
[363390224,1748716542045,157.39788139,6.8e-07,2]
[363391903,1748717068693,8041.02918156,0.00015,2]
[363391904,1748717068716,10903.15789474,0.00015,2]
[363391905,1748717068738,10903.15789474,0.00015,2]
[363391906,1748717068761,10903.15789474,0.00015,2]
[363391907,1748717068783,10903.15789474,0.00015,2]
[363391909,1748717068805,10903.15789474,0.00015,2]
[363391910,1748717068827,10903.15789474,0.00015,2]
[363391912,1748717068849,10903.15789474,0.00015,2]
[363391913,1748717068877,10903.15789474,0.00015,2]
[363391914,1748717068900,10903.15789474,0.00015,2]
[363391915,1748717068922,10903.15789474,0.00015,2]
[363391916,1748717068946,10903.15789474,0.00015,2]
[363391917,1748717068967,10903.15789474,0.00015,2]
[363391918,1748717069002,10903.15789474,0.00015,2]
[363391919,1748717069025,10903.15789474,0.00015,2]
[363391920,1748717069048,10903.15789474,0.00015,2]
[363391922,1748717069071,10903.15789474,0.00015,2]
[363391923,1748717069094,10903.15789474,0.00015,2]
[363391924,1748717069306,6415.81473785,0.00015,2]
[363391946,1748717073472,500.0,0.00014999,2]
[363391947,1748717073501,450.0,0.00014999,2]
[363391948,1748717073532,500.0,0.00014999,2]
[363391949,1748717073561,154.66052309,0.00014999,2]
[363391965,1748717076302,1917.08387946,0.00015,2]
[363392184,1748717120462,965.59875434,0.00015,2]
[363392185,1748717120485,3674.33370628,0.00015,2]
[363392404,1748717159099,183.0065921,0.00014939,2]
[363392526,1748717180524,4413.02044425,0.00015,2]
[363392850,1748717240244,2632.79715211,0.00015,2]
[363392851,1748717240270,1649.52534727,0.00015,2]
[363392887,1748717247125,-2638.85197288,0.00015237,2]
[363393143,1748717299076,4072.10746062,0.00015,2]
[363393394,1748717350101,-372.62255162,0.00015237,2]
[363393395,1748717350123,-565.0,0.00015444,2]
[363393396,1748717350147,-300.0,0.00015444,2]
[363393397,1748717350171,-300.0,0.00015445,2]
[363393398,1748717350193,-3182.27359543,0.00015446,2]
[363393809,1748717431808,-3772.69987932,0.00015291,2]
[363393811,1748717431818,-300.0,0.00015445,2]
[363393813,1748717431828,-21717.72640457,0.00015446,2]
[363393815,1748717431838,-2293.9034504,0.00015639,2]
[363393817,1748717431848,-942.1461936,0.00016137,2]
[363393820,1748717431857,-160.0,0.00016437,2]
[363393823,1748717431867,-500.0,0.00016437,2]
[363393825,1748717431876,-329.44470551,0.00016437,2]
[363393828,1748717431886,-500.0,0.00016437,2]
[363393831,1748717431895,-500.0,0.00016437,2]
[363393834,1748717431905,-500.0,0.00016437,2]
[363393836,1748717431915,-315.43415108,0.00016437,2]
[363393838,1748717431924,-500.0,0.00016437,2]
[363393840,1748717431933,-500.0,0.00016437,2]
[363393842,1748717431943,-500.0,0.00016437,2]
[363393844,1748717431952,-500.0,0.00016437,2]
[363393846,1748717431962,-500.0,0.00016437,2]
[363393848,1748717431971,-450.0,0.00016437,2]
[363393850,1748717431980,-430.0,0.00016438,2]
[363393852,1748717431992,-400.82147598,0.00016438,2]
[363393854,1748717432001,-430.0,0.00016438,2]
[363393856,1748717432012,-506.1688868,0.00016438,2]
[363393857,1748717432021,-430.0,0.00016438,2]
[363393859,1748717432030,-430.0,0.00016438,2]
[363393860,1748717432041,-365.47869035,0.00016438,2]
[363393861,1748717432051,-430.0,0.00016438,2]
[363393863,1748717432060,-430.0,0.00016438,2]
[363393865,1748717432072,-430.0,0.00016438,2]
[363393867,1748717432082,-420.0,0.00016438,2]
[363393869,1748717432091,-430.0,0.00016438,2]
[363393871,1748717432101,-430.0,0.00016438,2]
[363393873,1748717432110,-430.0,0.00016438,2]
[363393875,1748717432120,-510.19861097,0.00016438,2]
[363393876,1748717432129,-430.0,0.00016438,2]
[363393878,1748717432138,-430.0,0.00016438,2]
[363393880,1748717432147,-546.29831389,0.00016438,2]
[363393882,1748717432157,-430.0,0.00016438,2]
[363393884,1748717432166,-238.62658928,0.00016438,2]
[363393885,1748717432176,-415.83528251,0.00016438,2]
[363393887,1748717432185,-430.0,0.00016438,2]
[363393889,1748717432195,-402.94984634,0.00016438,2]
[363393892,1748717432207,-27.05015366,0.00016438,2]
[363393894,1748717432217,-430.0,0.00016438,2]
[363393896,1748717432226,-433.44687297,0.00016438,2]
[363393898,1748717432236,-430.0,0.00016438,2]
[363393900,1748717432246,-430.0,0.00016438,2]
[363393901,1748717432255,-430.0,0.00016438,2]
[363393902,1748717432264,-266.02928671,0.00016438,2]
[363393903,1748717432274,-455.64955504,0.00016438,2]
[363393904,1748717432283,-430.0,0.00016438,2]
[363393905,1748717432293,-529.54459199,0.00016438,2]
[363393906,1748717432302,-430.0,0.00016438,2]
[363393907,1748717432312,-342.5754512,0.00016438,2]
[363393908,1748717432322,-430.0,0.00016438,2]
[363393909,1748717432332,-430.0,0.00016438,2]
[363393910,1748717432341,-430.0,0.00016438,2]
[363393911,1748717432351,-430.0,0.00016438,2]
[363393912,1748717432361,-350.0,0.00016438,2]
[363393913,1748717432370,-430.0,0.00016438,2]
[363393914,1748717432380,-430.0,0.00016438,2]
[363393915,1748717432389,-371.6777489,0.00016438,2]
[363393916,1748717432399,-430.0,0.00016438,2]
[363393917,1748717432409,-338.99271537,0.00016438,2]
[363393918,1748717432419,-430.0,0.00016438,2]
[363393919,1748717432428,-430.0,0.00016438,2]
[363393920,1748717432438,-430.0,0.00016438,2]
[363393921,1748717432448,-430.0,0.00016438,2]
[363393922,1748717432457,-430.0,0.00016438,2]
[363393923,1748717432466,-430.0,0.00016438,2]
[363393924,1748717432477,-430.0,0.00016438,2]
[363393925,1748717432487,-370.0,0.00016438,2]
[363393926,1748717432496,-430.0,0.00016438,2]
[363393927,1748717432506,-430.0,0.00016438,2]
[363393928,1748717432515,-430.0,0.00016438,2]
[363393929,1748717432525,-361.75417049,0.00016438,2]
[363393930,1748717432535,-430.0,0.00016438,2]
[363393931,1748717432544,-430.0,0.00016438,2]
[363393932,1748717432554,-400.0,0.00016438,2]
[363393933,1748717432563,-430.0,0.00016438,2]
[363393934,1748717432572,-453.90181523,0.00016438,2]
[363393935,1748717432582,-430.0,0.00016438,2]
[363393936,1748717432592,-275.00357188,0.00016438,2]
[363393937,1748717432602,-400.0,0.00016438,2]
[363393938,1748717432613,-430.0,0.00016438,2]
[363393939,1748717432622,-430.0,0.00016438,2]
[363393940,1748717432632,-376.80851865,0.00016438,2]
[363393941,1748717432642,-300.0,0.00016438,2]
[363393942,1748717432652,-430.0,0.00016438,2]
[363393943,1748717432661,-430.0,0.00016438,2]
[363393944,1748717432671,-411.8883247,0.00016438,2]
[363393945,1748717432680,-430.0,0.00016438,2]
[363393947,1748717432689,-430.0,0.00016438,2]
[363393949,1748717432699,-370.02466814,0.00016438,2]
[363393951,1748717432709,-403.41986618,0.00016438,2]
[363393953,1748717432718,-430.0,0.00016438,2]
[363393955,1748717432728,-310.20887027,0.00016438,2]
[363393957,1748717432738,-430.0,0.00016438,2]
[363393958,1748717432748,-430.0,0.00016438,2]
[363393959,1748717432757,-209.60135184,0.00016438,2]
[363393960,1748717432767,-430.0,0.00016438,2]
[363393961,1748717432777,-430.0,0.00016438,2]
[363393962,1748717432787,-430.0,0.00016438,2]
[363393963,1748717432797,-430.0,0.00016438,2]
[363393964,1748717432807,-430.0,0.00016438,2]
[363393965,1748717432816,-450.0,0.00016438,2]
[363393966,1748717432826,-430.0,0.00016438,2]
[363393967,1748717432835,-430.0,0.00016438,2]
[363393968,1748717432845,-430.0,0.00016438,2]
[363393969,1748717432855,-430.0,0.00016438,2]
[363393970,1748717432865,-430.0,0.00016438,2]
[363393971,1748717432875,-400.0,0.00016438,2]
[363393973,1748717432885,-430.0,0.00016438,2]
[363393974,1748717432895,-320.0,0.00016438,2]
[363393975,1748717432904,-430.0,0.00016438,2]
[363393976,1748717432914,-394.27329561,0.00016438,2]
[363393977,1748717432923,-450.0,0.00016438,2]
[363393978,1748717432933,-430.0,0.00016438,2]
[363393979,1748717432943,-430.0,0.00016438,2]
[363393980,1748717432952,-410.34342262,0.00016438,2]
[363393981,1748717432965,-545.76247446,0.00016438,2]
[363393982,1748717432974,-430.0,0.00016438,2]
[363393983,1748717432984,-430.0,0.00016438,2]
[363393984,1748717432997,-277.53409505,0.00016438,2]
[363393985,1748717433007,-430.0,0.00016438,2]
[363393986,1748717433017,-310.0,0.00016438,2]
[363393987,1748717433026,-430.0,0.00016438,2]
[363393988,1748717433036,-430.0,0.00016438,2]
[363393989,1748717433047,-168.29192913,0.00016438,2]
[363393990,1748717433056,-376.97075569,0.00016438,2]
[363393991,1748717433066,-430.0,0.00016438,2]
[363393992,1748717433078,-430.0,0.00016438,2]
[363393993,1748717433088,-430.0,0.00016438,2]
[363393994,1748717433098,-340.0,0.00016438,2]
[363393995,1748717433108,-500.0,0.00016438,2]
[363393996,1748717433118,-500.0,0.00016438,2]
[363393997,1748717433128,-500.0,0.00016438,2]
[363393998,1748717433138,-430.0,0.00016438,2]
[363393999,1748717433147,-500.0,0.00016438,2]
[363394000,1748717433156,-324.69,0.00016438,2]
[363394001,1748717433166,-430.0,0.00016438,2]
[363394002,1748717433176,-430.0,0.00016438,2]
[363394003,1748717433186,-430.0,0.00016438,2]
[363394004,1748717433196,-430.0,0.00016438,2]
[363394005,1748717433207,-430.0,0.00016438,2]
[363394006,1748717433217,-396.55740732,0.00016438,2]
[363394007,1748717433227,-430.0,0.00016438,2]
[363394008,1748717433236,-430.0,0.00016438,2]
[363394009,1748717433246,-430.0,0.00016438,2]
[363394010,1748717433256,-430.0,0.00016438,2]
[363394011,1748717433266,-430.0,0.00016438,2]
[363394012,1748717433276,-430.0,0.00016438,2]
[363394013,1748717433285,-430.0,0.00016438,2]
[363394014,1748717433295,-481.69,0.00016438,2]
[363394015,1748717433304,-302.06786946,0.00016438,2]
[363394016,1748717433314,-315.61744052,0.00016438,2]
[363394017,1748717433324,-430.0,0.00016438,2]
[363394018,1748717433334,-430.0,0.00016438,2]
[363394019,1748717433343,-430.0,0.00016438,2]
[363394020,1748717433353,-256.2250846,0.00016438,2]
[363394021,1748717433363,-430.0,0.00016438,2]
[363394022,1748717433373,-430.0,0.00016438,2]
[363394023,1748717433383,-490.0,0.00016438,2]
[363394024,1748717433394,-430.0,0.00016438,2]
[363394025,1748717433404,-406.39633176,0.00016438,2]
[363394026,1748717433413,-430.0,0.00016438,2]
[363394027,1748717433423,-430.0,0.00016438,2]
[363394028,1748717433432,-430.0,0.00016438,2]
[363394029,1748717433443,-430.0,0.00016438,2]
[363394030,1748717433452,-430.0,0.00016438,2]
[363394031,1748717433462,-430.0,0.00016438,2]
[363394032,1748717433471,-430.0,0.00016438,2]
[363394033,1748717433481,-430.0,0.00016438,2]
[363394034,1748717433491,-576.5,0.00016438,2]
[363394035,1748717433501,-430.0,0.00016438,2]
[363394036,1748717433511,-430.0,0.00016438,2]
[363394037,1748717433520,-430.0,0.00016438,2]
[363394038,1748717433530,-430.0,0.00016438,2]
[363394039,1748717433540,-430.0,0.00016438,2]
[363394040,1748717433550,-430.0,0.00016438,2]
[363394041,1748717433559,-430.0,0.00016438,2]
[363394042,1748717433569,-430.0,0.00016438,2]
[363394043,1748717433579,-430.0,0.00016438,2]
[363394044,1748717433589,-410.8,0.00016438,2]
[363394045,1748717433599,-430.0,0.00016438,2]
[363394046,1748717433609,-304.90451865,0.00016438,2]
[363394047,1748717433619,-430.0,0.00016438,2]
[363394048,1748717433629,-430.0,0.00016438,2]
[363394049,1748717433639,-430.0,0.00016438,2]
[363394050,1748717433649,-430.0,0.00016438,2]
[363394051,1748717433658,-1004.92510082,0.00016438,2]
[363394052,1748717433668,-430.0,0.00016438,2]
[363394053,1748717433678,-754.05,0.00016438,2]
[363394054,1748717433688,-430.0,0.00016438,2]
[363394055,1748717433698,-182.41069151,0.00016438,2]
[363394056,1748717433708,-430.0,0.00016438,2]
[363394057,1748717433718,-430.0,0.00016438,2]
[363394058,1748717433728,-430.0,0.00016438,2]
[363394059,1748717433738,-430.0,0.00016438,2]
[363394060,1748717433748,-430.0,0.00016438,2]
[363394062,1748717433757,-430.0,0.00016438,2]
[363394063,1748717433766,-430.0,0.00016438,2]
[363394064,1748717433776,-430.0,0.00016438,2]
[363394065,1748717433786,-430.0,0.00016438,2]
[363394066,1748717433796,-430.0,0.00016438,2]
[363394067,1748717433806,-430.0,0.00016438,2]
[363394068,1748717433815,-430.0,0.00016438,2]
[363394069,1748717433825,-430.0,0.00016438,2]
[363394070,1748717433835,-430.0,0.00016438,2]
[363394071,1748717433844,-430.0,0.00016438,2]
[363394072,1748717433854,-430.0,0.00016438,2]
[363394073,1748717433864,-430.0,0.00016438,2]
[363394074,1748717433874,-430.0,0.00016438,2]
[363394075,1748717433884,-430.0,0.00016438,2]
[363394076,1748717433894,-430.0,0.00016438,2]
[363394077,1748717433904,-500.0,0.00016438,2]
[363394078,1748717433913,-430.0,0.00016438,2]
[363394079,1748717433922,-500.0,0.00016438,2]
[363394080,1748717433931,-500.0,0.00016438,2]
[363394081,1748717433941,-500.0,0.00016438,2]
[363394082,1748717433951,-500.0,0.00016438,2]
[363394083,1748717433961,-450.0,0.00016438,2]
[363394084,1748717433970,-430.0,0.00016438,2]
[363394085,1748717433980,-1550.43,0.00016438,2]
[363394086,1748717433991,-430.0,0.00016438,2]
[363394088,1748717434002,-430.0,0.00016438,2]
[363394089,1748717434011,-430.0,0.00016438,2]
[363394090,1748717434021,-430.0,0.00016438,2]
[363394091,1748717434031,-430.0,0.00016438,2]
[363394092,1748717434041,-1471.28,0.00016438,2]
[363394093,1748717434051,-434.87822458,0.00016438,2]
[363394094,1748717434061,-430.0,0.00016438,2]
[363394095,1748717434071,-430.0,0.00016438,2]
[363394096,1748717434082,-827.98,0.00016438,2]
[363394097,1748717434091,-430.0,0.00016438,2]
[363394098,1748717434102,-430.0,0.00016438,2]
[363394099,1748717434112,-626.27,0.00016438,2]
[363394100,1748717434122,-430.0,0.00016438,2]
[363394101,1748717434131,-430.0,0.00016438,2]
[363394102,1748717434141,-430.0,0.00016438,2]
[363394103,1748717434151,-710.63,0.00016438,2]
[363394104,1748717434161,-430.0,0.00016438,2]
[363394105,1748717434171,-404.45371331,0.00016438,2]
[363394106,1748717434180,-415.51965597,0.00016438,2]
[363394107,1748717434191,-430.0,0.00016438,2]
[363394108,1748717434201,-430.0,0.00016438,2]
[363394110,1748717434211,-400.0,0.00016438,2]
[363394111,1748717434222,-430.0,0.00016438,2]
[363394112,1748717434232,-460.21,0.00016438,2]
[363394113,1748717434242,-430.0,0.00016438,2]
[363394114,1748717434252,-1487.83,0.00016438,2]
[363394115,1748717434262,-430.0,0.00016438,2]
[363394116,1748717434272,-430.0,0.00016438,2]
[363394117,1748717434282,-430.0,0.00016438,2]
[363394118,1748717434292,-430.0,0.00016438,2]
[363394119,1748717434303,-430.0,0.00016438,2]
[363394120,1748717434312,-430.0,0.00016438,2]
[363394121,1748717434322,-430.0,0.00016438,2]
[363394122,1748717434332,-430.0,0.00016438,2]
[363394123,1748717434342,-430.0,0.00016438,2]
[363394124,1748717434352,-430.0,0.00016438,2]
[363394125,1748717434362,-430.0,0.00016438,2]
[363394126,1748717434373,-430.0,0.00016438,2]
[363394127,1748717434383,-258.51517768,0.00016438,2]
[363394128,1748717434394,-340.0,0.00016438,2]
[363394129,1748717434404,-433.51,0.00016438,2]
[363394130,1748717434414,-1080.62,0.00016438,2]
[363394131,1748717434424,-430.0,0.00016438,2]
[363394132,1748717434435,-430.0,0.00016438,2]
[363394133,1748717434445,-430.0,0.00016438,2]
[363394135,1748717434455,-430.0,0.00016438,2]
[363394136,1748717434465,-430.0,0.00016438,2]
[363394137,1748717434475,-430.0,0.00016438,2]
[363394138,1748717434485,-430.0,0.00016438,2]
[363394139,1748717434496,-430.0,0.00016438,2]
[363394140,1748717434507,-1098.56,0.00016438,2]
[363394141,1748717434517,-430.0,0.00016438,2]
[363394142,1748717434527,-430.84,0.00016438,2]
[363394144,1748717434537,-430.0,0.00016438,2]
[363394145,1748717434547,-430.0,0.00016438,2]
[363394146,1748717434557,-430.0,0.00016438,2]
[363394147,1748717434567,-430.0,0.00016438,2]
[363394148,1748717434578,-430.0,0.00016438,2]
[363394149,1748717434588,-430.0,0.00016438,2]
[363394150,1748717434707,-497.49,0.00016438,2]
[363394151,1748717434717,-491.59981371,0.00016438,2]
[363394152,1748717434727,-430.0,0.00016438,2]
[363394153,1748717434737,-430.0,0.00016438,2]
[363394154,1748717434747,-446.98,0.00016438,2]
[363394155,1748717434757,-745.5,0.00016438,2]
[363394156,1748717434767,-430.0,0.00016438,2]
[363394158,1748717434777,-430.0,0.00016438,2]
[363394159,1748717434787,-430.0,0.00016438,2]
[363394160,1748717434797,-430.0,0.00016438,2]
[363394161,1748717434807,-565.87,0.00016438,2]
[363394162,1748717434816,-430.0,0.00016438,2]
[363394163,1748717434826,-430.0,0.00016438,2]
[363394164,1748717434835,-816.56,0.00016438,2]
[363394165,1748717434844,-430.0,0.00016438,2]
[363394166,1748717434854,-430.0,0.00016438,2]
[363394167,1748717434865,-430.0,0.00016438,2]
[363394168,1748717434875,-458.72354344,0.00016438,2]
[363394170,1748717434885,-430.0,0.00016438,2]
[363394171,1748717434899,-430.0,0.00016438,2]
[363394172,1748717434909,-430.0,0.00016438,2]
[363394173,1748717434918,-430.0,0.00016438,2]
[363394174,1748717434928,-430.0,0.00016438,2]
[363394175,1748717434938,-430.0,0.00016438,2]
[363394176,1748717434947,-430.0,0.00016438,2]
[363394177,1748717434957,-430.0,0.00016438,2]
[363394178,1748717434966,-430.0,0.00016438,2]
[363394179,1748717434976,-210.96226806,0.00016438,2]
[363394180,1748717434986,-430.0,0.00016438,2]
[363394181,1748717434999,-430.0,0.00016438,2]
[363394182,1748717435009,-430.0,0.00016438,2]
[363394183,1748717435020,-495.1144221,0.00016438,2]
[363394184,1748717435031,-773.61,0.00016438,2]
[363394185,1748717435040,-430.0,0.00016438,2]
[363394186,1748717435051,-430.0,0.00016438,2]
[363394187,1748717435060,-430.0,0.00016438,2]
[363394189,1748717435072,-430.0,0.00016438,2]
[363394190,1748717435081,-430.0,0.00016438,2]
[363394191,1748717435091,-430.0,0.00016438,2]
[363394192,1748717435100,-430.0,0.00016438,2]
[363394193,1748717435109,-430.0,0.00016438,2]
[363394194,1748717435120,-430.0,0.00016438,2]
[363394195,1748717435130,-430.0,0.00016438,2]
[363394196,1748717435141,-430.0,0.00016438,2]
[363394197,1748717435150,-384.2046547,0.00016438,2]
[363394198,1748717435161,-430.0,0.00016438,2]
[363394199,1748717435171,-1167.74,0.00016438,2]
[363394200,1748717435180,-430.0,0.00016438,2]
[363394201,1748717435191,-430.0,0.00016438,2]
[363394202,1748717435201,-430.0,0.00016438,2]
[363394203,1748717435210,-430.0,0.00016438,2]
[363394204,1748717435220,-430.0,0.00016438,2]
[363394205,1748717435229,-430.0,0.00016438,2]
[363394206,1748717435239,-430.0,0.00016438,2]
[363394207,1748717435249,-430.0,0.00016438,2]
[363394208,1748717435259,-430.0,0.00016438,2]